bitfinex/quotes_BTCUSD_20230901
["timestamp","ask_amount","ask_price","bid_price","bid_amount"]
[1693572702393,3.50453627,26039.0,26038.0,0.09796502]
[1693572702599,3.74079962,26039.0,26038.0,0.02396502]
[1693572702812,4.16789962,26039.0,26038.0,0.09796502]
[1693572703037,5.24267277,26039.0,26038.0,0.09796502]
[1693572703242,4.76367901,26039.0,26038.0,0.074]
[1693572703618,0.1,26036.0,26033.0,0.04949009]
[1693572703827,0.1182,26034.0,26033.0,0.04949009]
[1693572704045,0.02,26032.0,26029.0,1.037279]
[1693572704288,0.1182,26030.0,26029.0,0.3311915]
[1693572705670,0.1182,26030.0,26029.0,0.8498435]
[1693572706513,0.1182,26030.0,26029.0,0.8758435]
[1693572706729,0.1192,26030.0,26029.0,0.8758435]
[1693572707305,0.1202,26030.0,26029.0,0.9008435]
[1693572708437,0.1202,26030.0,26029.0,0.92291151]
[1693572714533,0.1202,26030.0,26029.0,0.07306801]
[1693572714534,0.33660294,26030.0,26029.0,0.07306801]
[1693572714743,1.87620572,26030.0,26029.0,0.07306801]
[1693572714955,2.47246372,26030.0,26029.0,0.07306801]
[1693572715162,2.47246372,26030.0,26029.0,0.051]
[1693572715576,2.47246372,26030.0,26029.0,0.07319538]
[1693572715782,2.27606078,26030.0,26029.0,0.07319538]
[1693572715984,2.51219652,26030.0,26029.0,0.07319538]
[1693572719895,1.69980278,26030.0,26029.0,0.07319538]
[1693572720099,0.52728678,26030.0,26029.0,0.07319538]
[1693572720341,0.52728678,26030.0,26029.0,0.13238282]
[1693572720551,0.1402,26030.0,26029.0,0.13238282]
[1693572721521,0.002,26030.0,26029.0,0.13238282]
[1693572721738,0.002,26030.0,26029.0,1.68833882]
[1693572721986,0.002,26030.0,26029.0,2.2703056]
[1693572722191,0.002,26030.0,26029.0,2.2634656]
[1693572722399,0.002,26030.0,26029.0,2.2643656]
[1693572722605,0.002,26030.0,26029.0,2.2818856]
[1693572722810,0.001,26030.0,26029.0,2.2467456]
[1693572723026,0.001,26030.0,26029.0,2.2486656]
[1693572723256,0.04,26034.0,26029.0,2.2606856]
[1693572723457,0.04,26034.0,26031.0,0.1182]
[1693572723661,0.04,26034.0,26032.0,1.555776]
[1693572723864,0.04,26034.0,26032.0,1.57800803]
[1693572724769,0.1182,26033.0,26032.0,1.05941603]
[1693572726141,0.35317341,26033.0,26032.0,0.02923203]
[1693572726342,0.35317341,26033.0,26032.0,0.23952081]
[1693572726543,0.37317341,26033.0,26032.0,0.02923203]
[1693572726820,0.37317341,26033.0,26032.0,0.03723203]
[1693572727069,0.02,26033.0,26032.0,0.55582403]
[1693572727250,0.02,26033.0,26032.0,1.07441603]
[1693572727475,0.02,26033.0,26032.0,1.25750773]
[1693572729296,0.02,26033.0,26032.0,1.77609973]
[1693572736502,0.35771734,26033.0,26032.0,0.22032373]
[1693572737378,0.1382,26033.0,26032.0,0.22032373]
[1693572737592,0.02,26033.0,26032.0,0.73891573]
[1693572737990,0.02,26033.0,26032.0,0.72391573]
[1693572738202,0.021,26033.0,26032.0,1.76209973]
[1693572738403,0.022,26033.0,26032.0,1.76209973]
[1693572738601,0.022,26033.0,26032.0,1.75585043]
[1693572738802,0.021,26033.0,26032.0,1.75485043]
[1693572738977,0.022,26033.0,26032.0,1.75585043]
[1693572739895,0.002,26033.0,26032.0,1.75585043]
[1693572740294,0.001,26033.0,26032.0,2.33571721]
[1693572740496,0.002,26033.0,26032.0,2.33403721]
[1693572740804,0.002,26033.0,26032.0,2.26113721]
[1693572740977,0.04,26037.0,26032.0,2.26113721]
[1693572740978,0.04,26037.0,26032.0,2.26013721]
[1693572741183,0.04,26037.0,26033.0,0.85976744]
[1693572741412,0.04,26037.0,26034.0,2.074192]
[1693572742966,0.04,26037.0,26034.0,2.081192]
[1693572743402,0.04,26038.0,26035.0,0.1182]
[1693572743602,0.04,26038.0,26036.0,2.074048]
[1693572743809,0.04,26038.0,26037.0,0.05918744]
[1693572743970,0.13165275,26040.0,26037.0,1.73286344]
[1693572744168,1.10711548,26039.0,26037.0,1.88769815]
[1693572744419,1.10711548,26039.0,26037.0,1.61466344]
[1693572744621,0.001,26038.0,26037.0,1.61466344]
[1693572745000,0.04,26039.0,26037.0,1.61466344]
[1693572745194,0.04,26039.0,26038.0,0.1830917]
[1693572745402,0.041,26039.0,26038.0,1.7385107]
[1693572746293,0.04,26039.0,26038.0,1.7385107]
[1693572747668,0.04,26039.0,26038.0,1.7595107]
[1693572748469,0.04,26039.0,26038.0,1.2410377]
[1693572749506,0.04,26039.0,26038.0,1.7595107]
[1693572749710,0.04,26039.0,26038.0,1.7785107]
[1693572750560,0.42899622,26039.0,26038.0,0.7415647]
[1693572750973,0.13165275,26039.0,26038.0,1.2600377]
[1693572751195,0.04,26039.0,26038.0,1.2600377]
[1693572751828,0.04,26039.0,26038.0,1.7785107]
[1693572753589,0.04,26039.0,26038.0,1.79434377]
[1693572754135,0.1526,26041.0,26038.0,1.79434377]
[1693572754336,0.1926,26041.0,26039.0,0.23720132]
[1693572754541,0.04,26041.0,26040.0,1.555299]
[1693572755184,0.041,26041.0,26040.0,1.555299]
[1693572755371,0.04,26041.0,26040.0,1.555299]
[1693572755731,0.042,26041.0,26040.0,1.67257834]
[1693572756172,0.041,26041.0,26040.0,1.67257834]
[1693572756376,0.042,26041.0,26040.0,1.67257834]
[1693572756795,0.002,26041.0,26040.0,1.67257834]
[1693572757456,0.002,26041.0,26040.0,1.79077834]
[1693572757893,0.002,26041.0,26040.0,1.67257834]
[1693572758095,0.001,26041.0,26040.0,1.67257834]
[1693572758302,0.04,26043.0,26040.0,1.67257834]
[1693572758523,0.04,26043.0,26041.0,0.05918744]
[1693572758717,0.04,26043.0,26042.0,1.555179]
[1693572759509,0.041,26043.0,26042.0,1.555179]
[1693572759710,0.04,26043.0,26042.0,1.555179]
[1693572759912,0.041,26043.0,26042.0,1.555179]
[1693572760171,0.25111343,26043.0,26042.0,1.7382707]
[1693572760299,0.25111343,26043.0,26041.0,0.57758744]
[1693572760300,0.36931343,26043.0,26041.0,0.57758744]
[1693572760499,0.1182,26042.0,26041.0,0.57758744]
[1693572761536,0.1182,26042.0,26041.0,0.58558744]
[1693572762615,0.36883397,26042.0,26041.0,0.58558744]
[1693572763464,0.36883397,26042.0,26041.0,0.59258744]
[1693572764059,0.36883397,26042.0,26041.0,0.58458744]
[1693572764360,0.36983397,26042.0,26041.0,0.58458744]
[1693572764564,0.36983397,26042.0,26041.0,0.57758744]
[1693572764907,0.37083397,26042.0,26041.0,0.57758744]
[1693572765696,0.37083397,26042.0,26041.0,0.57760044]
[1693572765898,0.1202,26042.0,26041.0,0.57760044]
[1693572766117,0.1202,26042.0,26041.0,1.09601344]
[1693572768736,0.1202,26042.0,26041.0,1.11064425]
[1693572770613,0.32611821,26042.0,26041.0,1.11064425]
[1693572771241,0.32611821,26042.0,26041.0,0.59223125]
[1693572772446,0.32611821,26042.0,26041.0,0.07381825]
[1693572772674,0.36611821,26042.0,26041.0,0.07381825]
[1693572775266,0.36611821,26042.0,26041.0,0.59223125]
[1693572775664,0.37611821,26042.0,26041.0,0.59223125]
[1693572775865,0.37611821,26042.0,26041.0,0.07381825]
[1693572779555,0.46777096,26042.0,26041.0,0.07381825]
[1693572779910,0.37611821,26042.0,26041.0,0.07381825]
[1693572780232,0.46777096,26042.0,26041.0,0.07381825]
[1693572781406,0.46777096,26042.0,26041.0,1.78389196]
[1693572781407,0.012,26042.0,26041.0,1.78389196]
[1693572781640,0.012,26042.0,26041.0,2.36159874]
[1693572781844,0.012,26042.0,26041.0,2.21408403]
[1693572782052,0.012,26042.0,26041.0,2.21432403]
[1693572782252,0.012,26042.0,26041.0,2.20550403]
[1693572782460,0.012,26042.0,26041.0,2.13434403]
[1693572783587,0.012,26042.0,26041.0,1.62905725]
[1693572783588,0.011,26042.0,26041.0,1.62905725]
[1693572783789,0.011,26042.0,26041.0,1.63605725]
[1693572784198,0.01,26042.0,26041.0,1.62905725]
[1693572784402,0.01,26042.0,26041.0,1.66305725]
[1693572784606,0.01,26042.0,26041.0,1.70005725]
[1693572784823,0.01,26042.0,26041.0,1.66605725]
[1693572785879,0.01,26042.0,26041.0,1.70305725]
[1693572788859,0.01,26042.0,26041.0,1.62905725]
[1693572789067,0.01,26042.0,26041.0,1.66605725]
[1693572789676,0.01,26042.0,26041.0,1.70305725]
[1693572793615,0.01,26042.0,26041.0,1.82125725]
[1693572795996,0.01,26042.0,26041.0,2.28538403]
[1693572796205,0.01,26042.0,26041.0,2.30770403]
[1693572796412,0.01,26042.0,26041.0,2.30488403]
[1693572796614,0.01,26042.0,26041.0,2.30650403]
[1693572796790,0.01,26042.0,26041.0,2.31160403]
[1693572797022,0.13165275,26047.0,26041.0,2.44312403]
[1693572797243,0.04,26047.0,26042.0,1.05406332]
[1693572797446,0.04,26047.0,26044.0,0.1182]
[1693572797653,0.04,26047.0,26045.0,1.036666]
[1693572797654,0.13165275,26047.0,26045.0,1.036666]
[1693572797860,0.13165275,26047.0,26045.0,1.67986666]
[1693572798059,0.13165275,26047.0,26045.0,2.19819966]
[1693572798261,0.13165275,26047.0,26046.0,0.15029819]
[1693572798262,0.13565275,26047.0,26046.0,0.15029819]
[1693572798441,0.27323214,26047.0,26046.0,1.70523719]
[1693572798672,0.26923214,26047.0,26046.0,1.70523719]
[1693572798875,0.27323214,26047.0,26046.0,1.71884496]
[1693572799083,0.27723214,26047.0,26046.0,1.71884496]
[1693572799291,0.27323214,26047.0,26046.0,1.71884496]
[1693572799504,0.53114763,26047.0,26046.0,1.71884496]
[1693572799716,0.65334763,26047.0,26046.0,1.71884496]
[1693572799915,0.56169488,26047.0,26046.0,1.20053196]
[1693572800129,0.48721858,26047.0,26046.0,0.16390596]
[1693572800346,1.44618736,26047.0,26046.0,0.16390596]
[1693572800563,1.44618736,26047.0,26046.0,0.01360777]
[1693572800564,2.01806936,26047.0,26046.0,0.01360777]
[1693572800761,2.77257482,26047.0,26046.0,0.01360777]
[1693572800971,0.04,26045.0,26043.0,1.03673]
[1693572801150,0.1182,26044.0,26043.0,1.03673]
[1693572801785,0.35837779,26044.0,26043.0,1.03673]
[1693572802212,0.35837779,26044.0,26043.0,1.06973]
[1693572802417,0.35837779,26044.0,26043.0,1.10473]
[1693572802999,0.35837779,26044.0,26043.0,1.27201056]
[1693572803913,0.1182,26044.0,26043.0,1.27201056]
[1693572804386,0.1616,26049.0,26043.0,1.93213205]
[1693572804587,0.04,26047.0,26044.0,0.7869733]
[1693572804794,0.04,26049.0,26046.0,0.1182]
[1693572805001,0.04,26047.0,26045.0,0.834393]
[1693572805202,0.04,26047.0,26046.0,0.636513]
[1693572805420,0.04,26047.0,26046.0,0.82094043]
[1693572805667,0.04,26047.0,26046.0,1.73936643]
[1693572806605,0.04,26048.0,26046.0,1.77636643]
[1693572806809,0.1616,26051.0,26046.0,1.89456643]
[1693572807025,0.04,26048.0,26047.0,0.27303471]
[1693572807230,0.04,26048.0,26047.0,1.84035956]
[1693572807431,0.1616,26051.0,26047.0,1.84035956]
[1693572807633,0.04,26048.0,26047.0,1.84035956]
[1693572807853,0.04,26048.0,26047.0,1.72215956]
[1693572808592,0.04,26048.0,26047.0,1.75915956]
[1693572809314,0.04,26048.0,26047.0,1.79615956]
[1693572813557,0.04,26048.0,26047.0,1.80973787]
[1693572817173,0.04,26052.0,26047.0,2.31502465]
[1693572817422,0.04,26052.0,26051.0,0.1182]
[1693572817667,0.04,26052.0,26051.0,2.191056]
[1693572820041,0.04,26052.0,26051.0,2.211056]
[1693572820715,0.04,26052.0,26051.0,1.574642]
[1693572820917,0.04,26052.0,26051.0,1.77806943]
[1693572828629,0.04,26052.0,26051.0,1.79159193]
[1693572833942,0.035,26052.0,26051.0,1.79159193]
[1693572842440,0.015,26053.0,26051.0,2.29687871]
[1693572842657,0.015,26053.0,26052.0,0.55436734]
[1693572842868,0.015,26053.0,26052.0,2.22714934]
[1693572843081,0.015,26053.0,26052.0,2.29896934]
[1693572843290,0.015,26053.0,26052.0,2.29824934]
[1693572843546,0.015,26053.0,26052.0,2.30150934]
[1693572843844,0.015,26053.0,26052.0,2.24564502]
[1693572844478,0.015,26053.0,26052.0,2.28264502]
[1693572844889,0.015,26053.0,26052.0,2.36076502]
[1693572845097,0.0549,26058.0,26054.0,2.072576]
[1693572845313,0.0549,26058.0,26056.0,1.154428]
[1693572845314,0.0199,26058.0,26056.0,1.154428]
[1693572845526,0.0199,26058.0,26057.0,0.1182]
[1693572845723,0.0199,26058.0,26057.0,1.672482]
[1693572846351,0.0549,26058.0,26057.0,1.672482]
[1693572846692,0.0549,26058.0,26057.0,1.709482]
[1693572846895,0.0549,26058.0,26057.0,1.93120364]
[1693572847147,0.0199,26058.0,26057.0,1.93120364]
[1693572848723,0.0199,26058.0,26057.0,1.96820364]
[1693572858656,0.0199,26058.0,26057.0,1.98169965]
[1693572859854,0.1927,26060.0,26057.0,1.98169965]
[1693572860052,0.1927,26060.0,26059.0,1.554165]
[1693572862108,0.1927,26060.0,26059.0,1.628165]
[1693572869905,0.1927,26060.0,26059.0,0.074]
[1693572870113,0.55557997,26060.0,26059.0,0.592055]
[1693572870317,0.55557997,26060.0,26059.0,0.79512262]
[1693572870742,0.52897837,26060.0,26059.0,0.79512262]
[1693572871155,0.43737997,26060.0,26059.0,0.79512262]
[1693572871422,0.52897837,26060.0,26059.0,0.79512262]
[1693572872340,0.88727907,26060.0,26059.0,0.79512262]
[1693572872533,0.55557997,26060.0,26059.0,1.31317762]
[1693572873405,0.1927,26060.0,26059.0,1.84463569]
[1693572874719,0.43279057,26060.0,26059.0,1.84463569]
[1693572875547,0.67387349,26060.0,26059.0,1.84463569]
[1693572875752,0.76547189,26060.0,26059.0,1.84463569]
[1693572875884,0.88367189,26060.0,26059.0,1.32658069]
[1693572876298,0.72597189,26060.0,26059.0,1.32658069]
[1693572877550,1.83234092,26060.0,26059.0,1.32658069]
[1693572878797,1.96973852,26060.0,26059.0,1.32658069]
[1693572879591,1.87814012,26060.0,26059.0,1.32658069]
[1693572880050,1.87814012,26060.0,26059.0,0.29047069]
[1693572880336,2.06133693,26060.0,26059.0,0.08740307]
[1693572880749,2.15962544,26060.0,26059.0,0.08740307]
[1693572881255,2.38862145,26060.0,26059.0,0.08740307]
[1693572881483,2.15962544,26060.0,26059.0,0.08740307]
[1693572881715,2.38862145,26060.0,26059.0,0.26253553]
[1693572882719,2.20542464,26060.0,26059.0,0.26253553]
[1693572884600,1.97642863,26060.0,26059.0,0.26253553]
[1693572884741,2.20590615,26060.0,26059.0,0.26253553]
[1693572885158,2.20590615,26060.0,26059.0,0.75180953]
[1693572885586,1.97642863,26060.0,26059.0,0.75180953]
[1693572886786,1.98642863,26060.0,26059.0,0.75180953]
[1693572886983,1.86822863,26060.0,26059.0,0.75180953]
[1693572888095,1.85672068,26060.0,26059.0,1.24108353]
[1693572888448,1.62714571,26060.0,26059.0,1.24108353]
[1693572889436,1.62714571,26060.0,26059.0,1.73035753]
[1693572889639,1.85671275,26060.0,26059.0,1.73035753]
[1693572893709,1.61662218,26060.0,26059.0,1.73035753]
[1693572894470,1.98856468,26060.0,26059.0,0.75180953]
[1693572894671,1.62715457,26060.0,26059.0,1.24108353]
[1693572895061,1.62715457,26060.0,26059.0,1.73035753]
[1693572895654,1.61667837,26060.0,26059.0,1.73035753]
[1693572896618,1.61667837,26060.0,26059.0,1.24108353]
[1693572896817,1.62714838,26060.0,26059.0,1.24108353]
[1693572897419,1.85225352,26060.0,26059.0,1.24108353]
[1693572900629,1.62714838,26060.0,26059.0,1.24108353]
[1693572902366,1.61671293,26060.0,26059.0,1.73035753]
[1693572902540,1.61671293,26060.0,26059.0,1.24108353]
[1693572903119,1.81505165,26060.0,26059.0,1.24108353]
[1693572903321,1.82548786,26060.0,26059.0,1.24108353]
[1693572903720,2.89653714,26060.0,26059.0,0.26253553]
[1693572903929,3.74692635,26060.0,26059.0,0.08740307]
[1693572904135,3.78392144,26060.0,26059.0,0.08740307]
[1693572904337,3.78392144,26060.0,26059.0,0.074]
[1693572904547,3.78392144,26060.0,26059.0,0.08666857]
[1693572905188,4.17100822,26060.0,26059.0,0.08666857]
[1693572905388,4.19100822,26060.0,26059.0,0.08666857]
[1693572905566,4.19100822,26060.0,26059.0,0.074]
[1693572906164,4.21100822,26060.0,26059.0,0.074]
[1693572907866,4.21100822,26060.0,26059.0,0.08675563]
[1693572908091,4.21100822,26060.0,26059.0,0.074]
[1693572908998,4.47155858,26060.0,26059.0,0.08675405]
[1693572909376,3.85956311,26060.0,26059.0,0.08675405]
[1693572909574,3.85956311,26060.0,26059.0,0.074]
[1693572909919,3.85956311,26060.0,26059.0,0.08675405]
[1693572910121,2.85688233,26060.0,26059.0,0.08675405]
[1693572910342,2.0058995,26060.0,26059.0,0.14435996]
[1693572913648,2.5814935,26060.0,26059.0,0.14435996]
[1693572927455,2.32094314,26060.0,26059.0,0.14435996]
[1693572927661,4.13460675,26060.0,26059.0,0.08675405]
[1693572927877,4.15460675,26060.0,26059.0,0.08675405]
[1693572928076,4.15460675,26060.0,26059.0,0.074]
[1693572928557,4.19096708,26060.0,26059.0,0.037]
[1693572928767,4.61096708,26060.0,26059.0,0.044]
[1693572928980,4.61096708,26060.0,26059.0,0.007]
[1693572929199,4.61096708,26060.0,26059.0,0.015]
[1693572929409,4.61096708,26060.0,26059.0,0.008]
[1693572929600,5.01406708,26060.0,26059.0,0.015]
[1693572930380,5.01406708,26060.0,26059.0,0.007]
[1693572931203,4.61096708,26060.0,26059.0,0.007]
[1693572931539,4.61096708,26060.0,26054.0,0.53865987]
[1693572931761,0.53117406,26056.0,26055.0,0.33350359]
[1693572932011,1.63754309,26056.0,26055.0,0.83554716]
[1693572932196,1.89402212,26056.0,26055.0,0.83554716]
[1693572932675,1.92902212,26056.0,26055.0,0.83554716]
[1693572933105,1.92902212,26056.0,26055.0,1.36189616]
[1693572933348,1.92902212,26056.0,26055.0,1.39889616]
[1693572933864,1.72468517,26056.0,26055.0,0.31740357]
[1693572934121,3.98774098,26056.0,26055.0,0.08670357]
[1693572934321,4.72305702,26056.0,26055.0,0.08670357]
[1693572934697,4.87669002,26056.0,26055.0,0.074]
[1693572934872,5.34807002,26056.0,26055.0,0.074]
[1693572935073,5.38271508,26056.0,26055.0,0.037]
[1693572935279,0.035,26051.0,26050.0,0.049016]
[1693572935492,2.49692176,26051.0,26050.0,0.049016]
[1693572935763,3.60329079,26051.0,26050.0,0.13495068]
[1693572936413,3.4657372,26051.0,26050.0,0.13495068]
[1693572936659,3.5315884,26051.0,26050.0,0.04673908]
[1693572936846,5.13280257,26051.0,26050.0,0.08173908]
[1693572937053,4.83574658,26051.0,26050.0,0.04673908]
[1693572937271,5.06780714,26051.0,26050.0,0.071]
[1693572937478,4.56975951,26051.0,26050.0,0.1722]
[1693572937682,4.2436349,26051.0,26050.0,0.1722]
[1693572937882,4.04028718,26051.0,26050.0,0.1722]
[1693572938087,4.17772707,26051.0,26050.0,0.1722]
[1693572938288,3.9944747,26051.0,26050.0,0.1722]
[1693572938462,3.9944747,26051.0,26050.0,0.1382]
[1693572938761,3.9954747,26051.0,26050.0,0.1592]
[1693572939001,3.9924747,26051.0,26050.0,0.1382]
[1693572939129,3.9924747,26051.0,26050.0,0.037]
[1693572939337,1.922445,26050.0,26049.0,1.882]
[1693572939537,3.9456788,26050.0,26049.0,1.882]
[1693572940011,4.17851475,26050.0,26049.0,1.882]
[1693572940510,4.15792392,26050.0,26049.0,1.882]
[1693572940916,4.20891857,26050.0,26049.0,1.882]
[1693572941117,3.9466788,26050.0,26049.0,0.941]
[1693572941899,4.20241533,26050.0,26049.0,0.941]
[1693572942109,4.20341533,26050.0,26049.0,0.941]
[1693572942325,4.11183734,26050.0,26049.0,0.941]
[1693572942535,3.85610081,26050.0,26049.0,0.941]
[1693572943137,3.85610081,26050.0,26049.0,0.95386455]
[1693572945961,4.07961243,26050.0,26049.0,0.95386455]
[1693572946161,3.85610081,26050.0,26049.0,0.95386455]
[1693572946568,4.06810485,26050.0,26049.0,0.95386455]
[1693572946768,4.11858567,26050.0,26049.0,0.95386455]
[1693572946964,3.85610081,26050.0,26049.0,0.95386455]
[1693572947255,4.101038,26050.0,26049.0,1.04925101]
[1693572947458,3.85100737,26050.0,26049.0,1.04925101]
[1693572947870,4.08494808,26050.0,26049.0,1.04925101]
[1693572948065,3.85100737,26050.0,26049.0,1.04925101]
[1693572948693,4.09576787,26050.0,26049.0,1.04925101]
[1693572948888,3.85100737,26050.0,26049.0,1.04925101]
[1693572949397,3.85100737,26050.0,26049.0,1.03638646]
[1693572949716,4.06710254,26050.0,26049.0,1.03638646]
[1693572949925,3.85100737,26050.0,26049.0,1.04926004]
[1693572950143,4.05249245,26050.0,26049.0,0.95387358]
[1693572951257,3.89758589,26050.0,26049.0,0.95387358]
[1693572951458,1.26156903,26050.0,26049.0,1.44842902]
[1693572951660,0.1552,26050.0,26049.0,0.95896702]
[1693572951812,0.41265185,26050.0,26049.0,1.10381022]
[1693572952020,1.51937639,26050.0,26049.0,1.10381022]
[1693572952439,2.09419139,26050.0,26049.0,1.10381022]
[1693572952637,2.09519139,26050.0,26049.0,1.10381022]
[1693572952838,2.09419139,26050.0,26049.0,1.10381022]
[1693572953263,2.09319139,26050.0,26049.0,1.10381022]
[1693572953668,3.05609317,26050.0,26049.0,1.10381022]
[1693572953875,3.60475215,26050.0,26049.0,1.11681022]
[1693572954603,3.39545632,26050.0,26049.0,1.12881022]
[1693572954832,3.61566771,26050.0,26049.0,1.12881022]
[1693572956031,3.39545632,26050.0,26049.0,0.97887358]
[1693572956607,3.69545632,26050.0,26049.0,0.97887358]
[1693572957018,3.35366743,26050.0,26049.0,1.91987358]
[1693572958181,2.96658065,26050.0,26049.0,1.91987358]
[1693572958383,2.39076565,26050.0,26049.0,1.91987358]
[1693572958601,2.39076565,26050.0,26049.0,2.18582998]
[1693572958803,2.96658065,26050.0,26049.0,2.18582998]
[1693572960792,1.26092454,26050.0,26049.0,2.19092342]
[1693572961004,1.14272454,26050.0,26049.0,3.16984742]
[1693572961271,1.14272454,26050.0,26049.0,3.65930942]
[1693572961475,1.10772454,26050.0,26049.0,3.65930942]
[1693572961681,1.10772454,26050.0,26049.0,3.67930942]
[1693572961682,0.001,26050.0,26049.0,3.67930942]
[1693572962887,1.10761334,26050.0,26049.0,3.67930942]
[1693572963132,1.10761334,26050.0,26049.0,2.73830942]
[1693572963915,1.10761334,26050.0,26049.0,2.24884742]
[1693572965216,1.10761334,26050.0,26049.0,1.26992342]
[1693572965503,1.22581334,26050.0,26049.0,1.26992342]
[1693572965789,1.10761334,26050.0,26049.0,2.73830942]
[1693572966045,0.001,26050.0,26049.0,2.73830942]
[1693572967516,0.001,26050.0,26049.0,3.4241962]
[1693572967761,0.001,26050.0,26049.0,3.4548762]
[1693572968002,0.001,26050.0,26049.0,3.4506762]
[1693572968241,0.001,26050.0,26049.0,3.4480362]
[1693572968478,0.001,26050.0,26049.0,3.4471362]
[1693572968689,0.001,26050.0,26049.0,3.4474362]
[1693572968894,0.001,26050.0,26049.0,3.4353762]
[1693572969096,0.035,26055.0,26052.0,0.02]
[1693572969297,1.10652289,26054.0,26053.0,0.978774]
[1693572969524,1.10652289,26054.0,26053.0,1.17563417]
[1693572970139,1.10652289,26054.0,26053.0,1.66502117]
[1693572970462,1.10952289,26054.0,26053.0,1.70202117]
[1693572971512,1.11052289,26054.0,26053.0,1.73902117]
[1693572972533,1.4285665,26054.0,26053.0,0.27086017]
[1693572972796,2.0042935,26054.0,26053.0,0.27086017]
[1693572974157,1.4285665,26054.0,26053.0,0.27086017]
[1693572975664,2.62665209,26054.0,26053.0,0.0867398]
[1693572976929,2.05092509,26054.0,26053.0,0.0867398]
[1693572978143,2.62665209,26054.0,26053.0,0.0867398]
[1693572978968,2.63665209,26054.0,26053.0,0.0867398]
[1693572979173,2.63665209,26054.0,26053.0,0.12781378]
[1693572980984,2.63665209,26054.0,26053.0,0.12781378]
[1693572982854,2.39017689,26054.0,26053.0,0.12781378]
[1693572983056,1.81444989,26054.0,26053.0,0.12781378]
[1693572990218,2.03231517,26054.0,26053.0,0.12781378]
[1693572990446,2.60804217,26054.0,26053.0,0.12781378]
[1693572994630,2.39017689,26054.0,26053.0,0.12781378]
[1693572995843,1.8144641,26054.0,26053.0,0.12781378]
[1693572997016,1.2387371,26054.0,26053.0,0.12781378]
[1693572997427,1.1205371,26054.0,26053.0,0.12781378]
[1693572999614,1.43818198,26054.0,26053.0,0.12781378]
[1693572999909,2.01390898,26054.0,26053.0,0.12781378]
[1693573002501,2.10548697,26054.0,26053.0,0.12781378]
[1693573004278,1.52975997,26054.0,26053.0,0.12781378]
[1693573005190,1.57562187,26054.0,26053.0,0.12781378]
[1693573005758,2.72707587,26054.0,26053.0,0.12781378]
[1693573008253,2.91032824,26054.0,26053.0,0.12781378]
[1693573010135,2.86166484,26054.0,26053.0,0.12781378]
[1693573011516,1.78979114,26054.0,26053.0,0.12781378]
[1693573012327,1.65235125,26054.0,26053.0,0.12781378]
[1693573012788,0.18325237,26054.0,26053.0,0.12781378]
[1693573012988,0.32103086,26054.0,26053.0,0.61720078]
[1693573013189,0.13777849,26054.0,26053.0,0.61720078]
[1693573013389,0.22963355,26054.0,26053.0,0.61720078]
[1693573013807,0.09185506,26054.0,26053.0,1.10658778]
[1693573017258,0.09185506,26054.0,26053.0,1.59597478]
[1693573018158,0.26463355,26055.0,26053.0,1.59597478]
[1693573018364,0.26463355,26055.0,26054.0,0.21053698]
[1693573018917,0.26463355,26055.0,26054.0,0.22327361]
[1693573019468,1.23975076,26055.0,26054.0,0.26027361]
[1693573019666,1.23975076,26055.0,26054.0,0.04973663]
[1693573020073,1.81545576,26055.0,26054.0,0.04973663]
[1693573020277,1.23975076,26055.0,26054.0,0.04973663]
[1693573020489,1.24075076,26055.0,26054.0,0.04973663]
[1693573020922,1.23975076,26055.0,26054.0,0.04973663]
[1693573021246,1.81645576,26055.0,26054.0,0.19369849]
[1693573021455,1.81645576,26055.0,26054.0,0.08473663]
[1693573022839,1.67867727,26055.0,26054.0,0.08473663]
[1693573023050,1.7246007,26055.0,26054.0,0.08473663]
[1693573023268,1.90785307,26055.0,26054.0,0.08473663]
[1693573023910,1.77007458,26055.0,26054.0,0.08473663]
[1693573024584,1.9606614,26055.0,26054.0,0.08473663]
[1693573025567,2.5363664,26055.0,26054.0,0.08473663]
[1693573027714,2.76542696,26055.0,26054.0,0.08473663]
[1693573028334,2.58217459,26055.0,26054.0,0.08473663]
[1693573029299,0.035,26054.0,26049.0,0.941]
[1693573029517,0.33687513,26050.0,26049.0,0.94609344]
[1693573029726,3.26319416,26050.0,26049.0,0.94609344]
[1693573029926,3.46674736,26050.0,26049.0,0.94609344]
[1693573030137,4.2409145,26050.0,26049.0,0.941]
[1693573030341,4.78111161,26050.0,26049.0,0.941]
[1693573030555,4.78111161,26050.0,26049.0,0.944]
[1693573030753,4.77022243,26050.0,26049.0,0.947]
[1693573030955,4.77022243,26050.0,26049.0,0.944]
[1693573031352,4.80722243,26050.0,26049.0,0.947]
[1693573031817,4.77022243,26050.0,26049.0,0.941]
[1693573032219,4.80622243,26050.0,26049.0,0.945]
[1693573032622,4.77022243,26050.0,26049.0,0.941]
[1693573032824,4.95354298,26050.0,26049.0,0.941]
[1693573033049,4.99054298,26050.0,26049.0,0.944]
[1693573033256,5.02754298,26050.0,26049.0,0.947]
[1693573033866,4.79823505,26050.0,26049.0,0.947]
[1693573034072,4.95190005,26050.0,26049.0,0.947]
[1693573034737,4.8987343,26050.0,26049.0,0.947]
[1693573035830,4.71541375,26050.0,26049.0,0.947]
[1693573036215,4.71541375,26050.0,26049.0,0.006]
[1693573037292,4.91429389,26050.0,26043.0,0.196287]
[1693573037447,0.035,26044.0,26043.0,0.196287]
[1693573037648,0.035,26044.0,26043.0,0.24539575]
[1693573037847,0.035,26044.0,26042.0,0.489592]
[1693573039091,0.037,26044.0,26043.0,0.015]
[1693573039300,0.035,26044.0,26043.0,0.1483792]
[1693573039928,0.037,26044.0,26043.0,0.1483792]
[1693573040124,0.035,26044.0,26043.0,0.1483792]
[1693573040354,0.037,26044.0,26043.0,0.1633792]
[1693573040556,0.038,26044.0,26043.0,0.1783792]
[1693573041405,0.003,26044.0,26043.0,1.8359212]
[1693573041611,0.003,26044.0,26043.0,1.9547212]
[1693573041816,0.003,26044.0,26043.0,1.9573012]
[1693573042025,0.003,26044.0,26043.0,2.40256798]
[1693573042296,0.0494096,26050.0,26048.0,0.08]
[1693573042517,0.015,26052.0,26049.0,1.62322071]
[1693573042744,1.10661037,26051.0,26050.0,0.42463196]
[1693573042960,1.10661037,26051.0,26050.0,0.26979725]
[1693573043169,1.10661037,26051.0,26049.0,0.978917]